[Event "XX Sants Open 2018"]
[Site "Cotxeres de Sants"]
[Date "2018.08.21"]
[Round "5"]
[White "Peralta, Fernando"]
[Black "Gukesh D"]
[Result "1/2-1/2"]
[ECO "D45"]
[WhiteElo "2556"]
[BlackElo "2440"]
[Annotator "ChessBase"]
[PlyCount "79"]
[EventDate "2018.08.17"]
[EventType "swiss"]
[EventCountry "ESP"]
[SourceTitle "playchess.com"]
[Source "ChessBase"]
[SourceQuality "1"]
[TimeControl "40/5400+30:1800+30"]

1. d4 {[%emt 0:00:00]} d5 {[%emt 0:00:00]} 2. c4 {[%emt 0:00:06]} c6 {[%emt 0:00:00]} 3. Nf3 {[%emt 0:00:21]} Nf6 {[%emt 0:00:03]} 4. Nc3 {[%emt 0:00:14]} e6 {[%emt 0:00:17]} 5. e3 {[%emt 0:00:25]} Nbd7 {[%emt 0:00:45]} 6. Qc2 {[%emt 0:00:15]} Bd6 {[%emt 0:00:50]} 7. b3 {[%emt 0:00:27]} O-O {[%emt 0:01:24]} 8. Be2 {[%emt 0:00:07]} e5 {[%emt 0:16:28]} 9. cxd5 {[%emt 0:01:04]} cxd5 {[%emt 0:00:50]} 10. Nb5 {[%emt 0:00:24]} Bb4+ {[%emt 0:12:53]} 11. Bd2 {[%emt 0:01:16]} Bxd2+ {[%emt 0:00:29]} 12. Nxd2 {[%emt 0:00:13]} e4 {[%emt 0:05:22]} 13. O-O {[%emt 0:02:04]} Ne8 {[%emt 0:04:12]} 14. Rfc1 {[%emt 0:04:56]} a6 {[%emt 0:06:11]} 15. Nc7 {[%emt 0:04:10]} Nxc7 {[%emt 0:00:22]} 16. Qxc7 {[%emt 0:00:05]} Nb8 {[%emt 0:07:13]} 17. Nb1 {[%emt 0:17:09]} Nc6 {[%emt 0:02:48]} 18. Qxd8 {[%emt 0:00:55]} Rxd8 {[%emt 0:00:02]} 19. Nc3 {[%emt 0:00:13]} Rd6 {[%emt 0:07:26]} 20. Na4 {[%emt 0:03:24]} Bd7 {[%emt 0:02:56]} 21. Nc5 {[%emt 0:03:13]} Nd8 {[%emt 0:01:08]} 22. a4 {[%emt 0:08:31]} Kf8 {[%emt 0:02:09]} 23. Ra2 {[%emt 0:11:05]} Be8 {[%emt 0:02:34]} 24. a5 {[%emt 0:01:06]} Bb5 {[%emt 0:05:16]} 25. Kf1 {[%emt 0:04:09]} Ke7 {[%emt 0:05:30]} 26. Rac2 {[%emt 0:05:17]} Bxe2+ {[%emt 0:03:15]} 27. Kxe2 {[%emt 0:00:12]} b6 {[%emt 0:01:58]} 28. Na4 {[%emt 0:05:40]} bxa5 {[%emt 0:00:10]} 29. Rc7+ {[%emt 0:00:06]} Ke8 {[%emt 0:00:43]} 30. R7c5 {[%emt 0:12:35]} Rb8 {[%emt 0:00:49]} 31. Nc3 {[%emt 0:00:25]} Rxb3 {[%emt 0:04:13]} 32. Nxd5 {[%emt 0:01:29]} Rb2+ {[%emt 0:00:06]} 33. Ke1 {[%emt 0:00:08]} Nb7 {[%emt 0:01:11]} 34. Rc8+ {[%emt 0:01:39]} Rd8 {[%emt 0:00:02]} 35. Rxd8+ {[%emt 0:01:49]} Kxd8 {[%emt 0:00:40]} 36. Rc6 {[%emt 0:03:20]} Kd7 {[%emt 0:03:31]} 37. Rxa6 {[%emt 0:00:44]} Rb1+ {[%emt 0:00:15]} 38. Ke2 {[%emt 0:04:39]} Rb2+ {[%emt 0:00:20]} 39. Ke1 {[%emt 0:00:06]} Rb1+ {[%emt 0:00:05]} 40. Ke2 {[%emt 0:00:00]} 1/2-1/2

[Event "XX Sants Open 2018"]
[Site "Cotxeres de Sants"]
[Date "2018.08.21"]
[Round "5"]
[White "Gutierrez Palomino, Albert"]
[Black "Alcala Gonzalez, Cesar"]
[Result "0-1"]
[ECO "A11"]
[WhiteElo "1912"]
[BlackElo "1815"]
[Annotator "NA RC"]
[PlyCount "76"]
[EventDate "2018.08.17"]
[EventType "swiss"]
[EventCountry "ESP"]
[SourceTitle "playchess.com"]
[Source "ChessBase"]
[SourceQuality "1"]
[TimeControl "40/5400+30:1800+30"]

1. c4 {[%emt 0:00:00]} c6 {[%emt 0:00:00]} 2. Nf3 {[%emt 0:00:00]} d5 {[%emt 0:00:00]} 3. e3 {[%emt 0:00:08]} Nf6 {[%emt 0:00:00]} 4. Nc3 {[%emt 0:00:29]} e6 {[%emt 0:00:02]} 5. b3 {[%emt 0:00:32]} Nbd7 {[%emt 0:00:16]} 6. Qc2 {[%emt 0:00:24]} Bd6 {[%emt 0:00:08]} 7. Bb2 {[%emt 0:00:20]} O-O {[%emt 0:00:08]} 8. Rg1 {[%emt 0:00:42]} e5 {[%emt 0:00:42]} 9. cxd5 {[%emt 0:00:28]} cxd5 {[%emt 0:04:57]} 10. Nb5 {[%emt 0:00:32]} Bb8 {[%emt 0:10:16]} 11. Rc1 {[%emt 0:00:59]} e4 {[%emt 0:02:49]} 12. Nfd4 {[%emt 0:06:05]} Bxh2 {[%emt 0:06:49]} 13. Rh1 {[%emt 0:00:32]} Be5 {[%emt 0:00:49]} 14. Ba3 {[%emt 0:06:14]} Re8 {[%emt 0:01:37]} 15. Nf5 {[%emt 0:09:45]} Nb6 {[%emt 0:14:19]} 16. Nfd6 {[%emt 0:09:38]} Bxd6 {[%emt 0:01:41]} 17. Bxd6 {[%emt 0:16:29]} Bg4 {[%emt 0:10:32]} 18. Bc7 {[%emt 0:02:24]} Qe7 {[%emt 0:08:30]} 19. Nd6 {[%emt 0:02:52]} Rf8 {[%emt 0:09:27]} 20. Nb5 {[%emt 0:25:00]} Rfc8 {[%emt 0:07:42]} 21. Nd6 {[%emt 0:05:12]} Ne8 {[%emt 0:00:51]} 22. Nxe8 {[%emt 0:03:08]} Qxe8 {[%emt 0:00:10]} 23. Qc5 {[%emt 0:04:41]} Qe6 {[%emt 0:02:14]} 24. Bb5 {[%emt 0:01:34]} a6 {[%emt 0:00:43]} 25. Be2 {[%emt 0:00:54]} Bxe2 {[%emt 0:01:42]} 26. Kxe2 {[%emt 0:00:01]} Qg4+ {[%emt 0:00:26]} 27. Kf1 {[%emt 0:00:26]} Rxc7 {[%emt 0:00:29]} 28. Qxc7 {[%emt 0:01:15]} Rc8 {[%emt 0:00:07]} 29. f3 {[%emt 0:02:50]} Rxc7 {[%emt 0:00:50]} 30. Rxc7 {[%emt 0:00:50]} exf3 {[%emt 0:00:04]} 31. Rg1 {[%emt 0:00:30]} fxg2+ {[%emt 0:00:37]} 32. Rxg2 {[%emt 0:00:20]} Qd1+ {[%emt 0:00:01]} 33. Kf2 {[%emt 0:00:02]} Qxd2+ {[%emt 0:00:08]} 34. Kf3 {[%emt 0:00:31]} Qd1+ {[%emt 0:00:32]} 35. Re2 {[%emt 0:00:53]} g5 {[%emt 0:00:02]} 36. Rxb7 {[%emt 0:00:44]} g4+ {[%emt 0:00:05]} 37. Kf2 {[%emt 0:00:02]} g3+ {[%emt 0:00:05]} 38. Kxg3 {[%emt 0:00:45]} Qxe2 {[%emt 0:00:02]} 0-1

[Event "XX Sants Open 2018"]
[Site "Cotxeres de Sants"]
[Date "2018.08.21"]
[Round "5"]
[White "Moreno Perez, Norberto"]
[Black "Barragan Hernandez, Manel"]
[Result "1-0"]
[ECO "B40"]
[WhiteElo "1848"]
[BlackElo "1799"]
[Annotator "NA RC"]
[PlyCount "28"]
[EventDate "2018.08.17"]
[EventType "swiss"]
[EventCountry "ESP"]
[SourceTitle "playchess.com"]
[Source "ChessBase"]
[SourceQuality "1"]
[TimeControl "40/5400+30:1800+30"]

1. e4 c5 2. Nf3 e6 3. Be2 Qc7 4. c4 Nf6 5. Nc3 a6 6. e5 Ng4 7. d4 Nc6 8. Bf4 cxd4 9. Nxd4 Nxf2 10. Kxf2 Nxd4 11. h3 Bc5 12. Kg3 g5 13. Bd2 Qxe5+ 14. Kf2 Nxe2+ 1-0

[Event "XX Sants Open 2018"]
[Site "Cotxeres de Sants"]
[Date "2018.08.21"]
[Round "5"]
[White "Santos Ramos, Carlos"]
[Black "Ruiz Gonzalez, Jorge"]
[Result "1-0"]
[ECO "A46"]
[WhiteElo "1825"]
[BlackElo "1888"]
[Annotator "NA RC"]
[PlyCount "77"]
[EventDate "2018.08.17"]
[EventType "swiss"]
[EventCountry "ESP"]
[SourceTitle "playchess.com"]
[Source "ChessBase"]
[SourceQuality "1"]
[TimeControl "40/5400+30:1800+30"]

1. d4 Nf6 2. Nf3 d5 3. c4 e6 4. g3 Bb4+ 5. Bd2 Bd6 6. c5 Be7 7. Nc3 c6 8. Bg2 b6 9. b4 Bb7 10. O-O O-O 11. Re1 Ne4 12. Ne5 f6 13. Nd3 a5 14. Nxe4 dxe4 15. Nf4 Kf7 16. Qb3 Bc8 17. Bh3 a4 18. Bxe6+ Ke8 19. Qc3 g5 20. Bxc8 Qxc8 21. Ng2 b5 22. f3 Qe6 23. Qe3 f5 24. Rf1 f4 25. gxf4 gxf4 26. Qxe4 Qh3 27. Bxf4 Rf6 28. Rf2 Re6 29. Be5 Rg6 30. Kh1 Rh6 31. Nf4 Qh4 32. Rg2 Nd7 33. Bd6 Ra7 34. Rag1 Nf6 35. Qxc6+ Rd7 36. Bxe7 Kxe7 37. Rg7+ Ke8 38. Qc8+ Rd8 39. Qe6+ 1-0

[Event "XX Sants Open 2018"]
[Site "Cotxeres de Sants"]
[Date "2018.08.21"]
[Round "5"]
[White "Martinez Torras, Pol"]
[Black "Grasa Solanas, Oscar"]
[Result "0-1"]
[ECO "B01"]
[WhiteElo "1642"]
[BlackElo "1646"]
[Annotator "NA RC"]
[PlyCount "80"]
[EventDate "2018.08.17"]
[EventType "swiss"]
[EventCountry "ESP"]
[SourceTitle "playchess.com"]
[Source "ChessBase"]
[SourceQuality "1"]
[TimeControl "40/5400+30:1800+30"]

1. e4 d5 2. exd5 Qxd5 3. Nc3 Qa5 4. d4 c6 5. Nf3 Bg4 6. h3 Bh5 7. g4 Bg6 8. Ne5 Nd7 9. Nc4 Qc7 10. h4 O-O-O 11. h5 e5 12. hxg6 fxg6 13. Bg5 Be7 14. Bxe7 Nxe7 15. d5 cxd5 16. Nb5 Qc5 17. Ncd6+ Kb8 18. Rh3 Rhf8 19. Qd2 d4 20. b4 Qc6 21. Rh2 Nb6 22. Bg2 Nbd5 23. Rxh7 a6 24. Rxg7 axb5 25. Rxe7 Qxd6 26. Rh7 Rd7 27. Rxd7 Qxd7 28. Bxd5 Qxd5 29. O-O-O Qxa2 30. Qe1 Qa1+ 31. Kd2 Qc3+ 32. Kc1 Qc7 33. Rd3 Rc8 34. Qe2 Qd6 35. Rb3 Qd5 36. f3 Qxb3 37. Qxe5+ Ka8 38. Qe4 Qe3+ 39. Kd1 Qxe4 40. fxe4 Rc3 0-1

[Event "XX Sants Open 2018"]
[Site "Cotxeres de Sants"]
[Date "2018.08.21"]
[Round "5"]
[White "Martin Sanchez, Antoni"]
[Black "Fernandez Pintado, Xavier"]
[Result "1/2-1/2"]
[ECO "A43"]
[WhiteElo "1535"]
[BlackElo "1577"]
[Annotator "NA RC"]
[PlyCount "59"]
[EventDate "2018.08.17"]
[EventType "swiss"]
[EventCountry "ESP"]
[SourceTitle "playchess.com"]
[Source "ChessBase"]
[SourceQuality "1"]
[TimeControl "40/5400+30:1800+30"]

1. d4 {[%emt 0:02:41]} c5 {[%emt 0:00:02]} 2. e3 {[%emt 0:00:36]} e5 {[%emt 0:00:37]} 3. dxe5 {[%emt 0:01:40]} Nc6 {[%emt 0:00:12]} 4. Nf3 {[%emt 0:01:20]} d6 {[%emt 0:04:02]} 5. exd6 {[%emt 0:00:25]} Bxd6 {[%emt 0:00:21]} 6. Be2 {[%emt 0:04:39]} Nf6 {[%emt 0:00:17]} 7. Nc3 {[%emt 0:02:29]} a6 {[%emt 0:00:18]} 8. b3 {[%emt 0:01:05]} O-O {[%emt 0:00:25]} 9. Bb2 {[%emt 0:00:04]} Qe7 {[%emt 0:01:29]} 10. h3 {[%emt 0:01:44]} Be6 {[%emt 0:03:45]} 11. O-O {[%emt 0:02:37]} Rad8 {[%emt 0:00:14]} 12. Qe1 {[%emt 0:00:40]} Bb8 {[%emt 0:01:24]} 13. Bd3 {[%emt 0:03:32]} Qc7 {[%emt 0:00:35]} 14. Ne2 {[%emt 0:03:18]} Nd7 {[%emt 0:05:11]} 15. Qc3 {[%emt 0:02:13]} f6 {[%emt 0:01:50]} 16. Ng3 {[%emt 0:06:38]} b5 {[%emt 0:05:23]} 17. a3 {[%emt 0:06:48]} b4 {[%emt 0:08:56]} 18. axb4 {[%emt 0:00:59]} cxb4 {[%emt 0:00:15]} 19. Qe1 {[%emt 0:00:41]} a5 {[%emt 0:00:25]} 20. Qe2 {[%emt 0:02:32]} Nde5 {[%emt 0:01:05]} 21. Nd4 {[%emt 0:07:18]} Bc8 {[%emt 0:13:52]} 22. Rac1 {[%emt 0:08:57]} Nxd4 {[%emt 0:06:51]} 23. Bxd4 {[%emt 0:03:23]} Rfe8 {[%emt 0:05:24]} 24. Rfd1 {[%emt 0:08:15]} Nxd3 {[%emt 0:01:34]} 25. Qxd3 {[%emt 0:01:58]} Qb7 {[%emt 0:01:38]} 26. Qf1 {[%emt 0:01:00]} Qc6 {[%emt 0:01:08]} 27. Rd2 {[%emt 0:00:44]} Ba6 {[%emt 0:01:27]} 28. Qd1 {[%emt 0:00:54]} Bb7 {[%emt 0:02:22]} 29. Qf1 {[%emt 0:00:28]} Ba6 {[%emt 0:00:21]} 30. Qd1 {[%emt 0:00:22]} 1/2-1/2

[Event "XX Sants Open 2018"]
[Site "Cotxeres de Sants"]
[Date "2018.08.21"]
[Round "5"]
[White "Gonzalez Avellana, Santiago"]
[Black "Vadillo, Torre Ismael"]
[Result "1/2-1/2"]
[ECO "D02"]
[WhiteElo "1465"]
[BlackElo "1567"]
[Annotator "NA"]
[PlyCount "44"]
[EventDate "2018.08.17"]
[EventType "swiss"]
[EventCountry "ESP"]
[SourceTitle "playchess.com"]
[Source "ChessBase"]
[SourceQuality "1"]
[TimeControl "40/5400+30:1800+30"]

1. d4 d5 2. Nf3 Nf6 3. c4 c6 4. Qc2 g6 5. g3 Bf5 6. Qb3 Qc8 7. Bg2 Bg7 8. Nc3 dxc4 9. Qxc4 O-O 10. O-O Nbd7 11. Re1 Ne4 12. Ng5 Nd6 13. Qa4 Nb6 14. Qd1 h6 15. e4 Bg4 16. Bf3 Bd7 17. e5 Nf5 18. Nge4 Rd8 19. Nc5 e6 20. Bg4 Nd5 21. N3e4 Bf8 22. Bxf5 exf5 1/2-1/2

[Event "XX Sants Open 2018"]
[Site "Cotxeres de Sants"]
[Date "2018.08.22"]
[Round "6"]
[White "Vargas Drechsler, Carlos"]
[Black "Grunfelder, Anthony"]
[Result "1/2-1/2"]
[ECO "C55"]
[WhiteElo "1902"]
[BlackElo "1860"]
[Annotator "NA"]
[PlyCount "60"]
[EventDate "2018.08.17"]
[EventType "swiss"]
[EventCountry "ESP"]
[SourceTitle "playchess.com"]
[Source "ChessBase"]
[SourceQuality "1"]
[TimeControl "40/5400+30:1800+30"]

1. e4 e5 2. Nf3 Nc6 3. Bc4 Nf6 4. d4 exd4 5. O-O Bc5 6. e5 d5 7. exf6 dxc4 8. Re1+ Be6 9. Ng5 Qd5 10. Nc3 Qf5 11. Nce4 O-O-O 12. g4 Qe5 13. Nxc5 Qxc5 14. Nxe6 fxe6 15. fxg7 Rhg8 16. Bh6 d3 17. c3 Ne5 18. Bf4 Ng6 19. Bg3 Rxg7 20. b4 Qd5 21. Qa4 Rf8 22. Qxa7 Nf4 23. Bxf4 Rxf4 24. Re3 Rfxg4+ 25. Rg3 h5 26. Qa8+ Kd7 27. Qa4+ Kc8 28. Qe8+ Qd8 29. Qxe6+ Qd7 30. Qxd7+ Kxd7 1/2-1/2

[Event "XX Sants Open 2018"]
[Site "Cotxeres de Sants"]
[Date "2018.08.22"]
[Round "6"]
[White "Alcala Gonzalez, Cesar"]
[Black "Santos Ramos, Carlos"]
[Result "0-1"]
[ECO "A52"]
[WhiteElo "1815"]
[BlackElo "1825"]
[Annotator "NA"]
[PlyCount "104"]
[EventDate "2018.08.17"]
[EventType "swiss"]
[EventCountry "ESP"]
[SourceTitle "playchess.com"]
[Source "ChessBase"]
[SourceQuality "1"]
[TimeControl "40/5400+30:1800+30"]

1. d4 {[%emt 0:00:00]} Nf6 {[%emt 0:00:00]} 2. c4 {[%emt 0:00:00]} e5 {[%emt 0:00:17]} 3. dxe5 {[%emt 0:00:00]} Ng4 {[%emt 0:00:09]} 4. Bf4 {[%emt 0:00:00]} Bb4+ {[%emt 0:00:11]} 5. Nd2 {[%emt 0:01:02]} Nc6 {[%emt 0:00:24]} 6. Ngf3 {[%emt 0:00:06]} Qe7 {[%emt 0:00:06]} 7. e3 {[%emt 0:00:29]} Ngxe5 {[%emt 0:00:33]} 8. Be2 {[%emt 0:00:15]} O-O {[%emt 0:01:06]} 9. O-O {[%emt 0:00:25] A52: Budapest Gambit} Ng6 {[%emt 0:05:01]} 10. Bg3 {[%emt 0:03:17]} Bd6 {[%emt 0:00:15]} 11. Bxd6 {[%emt 0:06:30]} Qxd6 {[%emt 0:00:03]} 12. Qc2 $146 {[%emt 0:00:34]} ({Predecessor:} 12. Ne4 Qe7 13. Nc3 d6 14. Nd5 Qd8 15. Rc1 Be6 16. Qd2 a5 {1-0 (75) Voltolini,G (2279)-Drazic,S (2508) Cesenatico 2000}) 12... f5 {[%emt 0:03:14]} 13. c5 {[%emt 0:15:35]} Qf6 {[%emt 0:00:26]} 14. b4 {[%emt 0:01:18]} Kh8 {[%emt 0:01:02]} 15. b5 {[%emt 0:06:51]} Nce5 {[%emt 0:00:12]} 16. Nxe5 {[%emt 0:06:00]} Nxe5 {[%emt 0:03:43]} 17. f4 {[%emt 0:04:49]} Ng4 {[%emt 0:02:22]} 18. Bxg4 {[%emt 0:01:09]} fxg4 {[%emt 0:00:02]} 19. Nc4 {[%emt 0:02:55]} d6 {[%emt 0:01:28]} 20. cxd6 {[%emt 0:00:37]} cxd6 {[%emt 0:00:14]} 21. Rad1 {[%emt 0:00:27]} Rd8 {[%emt 0:05:56]} 22. e4 {[%emt 0:04:59]} d5 {[%emt 0:11:17]} 23. exd5 {[%emt 0:06:43]} Bf5 {[%emt 0:00:53]} 24. Qf2 {[%emt 0:03:02]} Rac8 {[%emt 0:01:55]} 25. Ne5 {[%emt 0:08:01]} b6 {[%emt 0:06:54]} 26. Nc6 {[%emt 0:02:39]} Rd7 {[%emt 0:02:29]} 27. Rfe1 {[%emt 0:01:31]} h5 {[%emt 0:00:26]} 28. Qd4 {[%emt 0:03:06]} Qf8 {[%emt 0:08:13]} 29. d6 {[%emt 0:01:50]} Kh7 {[%emt 0:01:30]} 30. Re7 {[%emt 0:02:34]} Re8 {[%emt 0:03:07]} 31. Rxd7 {[%emt 0:03:03]} Bxd7 {[%emt 0:00:04]} 32. Nxa7 {[%emt 0:00:02]} Qf7 {[%emt 0:03:00]} 33. Qxb6 {[%emt 0:05:05]} Qxa2 {[%emt 0:00:28]} 34. Qc5 {[%emt 0:00:30]} g6 {[%emt 0:06:48]} 35. Qd5 {[%emt 0:02:19]} Qxa7+ {[%emt 0:00:08]} 36. Qd4 {[%emt 0:00:38]} Qxd4+ {[%emt 0:00:58]} 37. Rxd4 {[%emt 0:00:02]} Bxb5 {[%emt 0:00:14]} 38. Kf2 {[%emt 0:01:07]} Kg7 {[%emt 0:01:00]} 39. Kg3 {[%emt 0:02:13]} Kf6 {[%emt 0:00:20]} 40. Rd5 {[%emt 0:00:00]} Bd7 {[%emt 0:00:00]} 41. Kf2 {[%emt 0:04:59]} Rc8 {[%emt 0:00:57]} 42. Ke3 {[%emt 0:08:04]} Ke6 {[%emt 0:04:59]} 43. Rg5 {[%emt 0:00:41]} Kf6 {[%emt 0:00:41]} 44. Re5 {[%emt 0:00:21]} Rc6 {[%emt 0:00:29]} 45. Rd5 {[%emt 0:00:19]} Rc2 {[%emt 0:09:29]} 46. Re5 {[%emt 0:03:07]} Rc1 {[%emt 0:00:33]} 47. Kd4 {[%emt 0:00:38]} Be6 {[%emt 0:00:44]} 48. Rb5 {[%emt 0:02:13]} Rc6 {[%emt 0:00:32]} 49. Rb8 {[%emt 0:00:59]} Rxd6+ {[%emt 0:00:11]} 50. Ke3 {[%emt 0:00:01]} Bf5 {[%emt 0:00:45]} 51. Re8 {[%emt 0:00:39]} Re6+ {[%emt 0:03:05]} 52. Rxe6+ {[%emt 0:00:11]} Kxe6 {[%emt 0:00:14]} 0-1

[Event "XX Sants Open 2018"]
[Site "Cotxeres de Sants"]
[Date "2018.08.22"]
[Round "6"]
[White "Barragan Hernandez, Manel"]
[Black "Perez Garcia, Jose Miguel"]
[Result "0-1"]
[ECO "B42"]
[WhiteElo "1799"]
[BlackElo "1910"]
[Annotator "NA"]
[PlyCount "126"]
[EventDate "2018.08.17"]
[EventType "swiss"]
[EventCountry "ESP"]
[SourceTitle "playchess.com"]
[Source "ChessBase"]
[SourceQuality "1"]
[TimeControl "40/5400+30:1800+30"]

1. e4 c5 2. Nf3 e6 3. d4 cxd4 4. Nxd4 a6 5. Bd3 Nf6 6. O-O Qc7 7. Qe2 d6 8. c4 Nbd7 9. Nc3 {B42: Sicilian: Kan Variation: 5 Bd3} (9. f4 e5 10. Nf3 Be7 11. Nc3 b6 12. Kh1 Bb7 13. b3 b5 14. Nd5 Nxd5 15. cxd5 Bf6 16. f5 g6 17. Bg5 gxf5 18. Bxf6 Nxf6 {1-0 (33) Castellanos Rodriguez,R (2501)-Stocek,J (2566) Katowice 2017}) 9... Ne5 10. Bd2 Be7 11. b3 Nxd3 12. Qxd3 O-O $146 ({Predecessor:} 12... b6 13. f4 g6 14. Rae1 Bb7 15. f5 gxf5 16. exf5 e5 {0-1 (87) Meneses Gonzalez,K (2103)-Trujillo Alvarado,I (2173) Santa Cruz 2010}) 13. Rfe1 Rd8 14. Qg3 g6 15. Rad1 Bd7 16. Kh1 Rab8 17. Rc1 Re8 18. f4 Qc5 19. Be3 Qh5 20. h3 Red8 21. Nf3 Bc6 22. Bb6 Rdc8 23. Nd4 Be8 24. Nf3 Nd7 25. Ba7 Ra8 26. Bf2 Nc5 27. Rcd1 Nd7 28. Rc1 Bf6 29. e5 dxe5 30. fxe5 Be7 31. Ne4 Nc5 32. Nxc5 Bxc5 33. Bxc5 Rxc5 34. Ng5 Kg7 35. Qf4 h6 36. Ne4 Qxe5 37. Qd2 Rc7 38. Nf2 Qf5 39. Ng4 Qg5 40. Qb2+ Kf8 41. Qh8+ Ke7 42. Qxh6 Qxh6 43. Nxh6 f5 44. g4 Bc6+ 45. Kh2 Be4 46. g5 Rd8 47. Rcd1 Rcd7 48. Rxd7+ Rxd7 49. Re2 Rd1 50. Ng8+ Kd6 51. Nf6 Ke5 52. h4 $19 (52. Nxe4 fxe4 53. Kg3) 52... Kf4 53. Nxe4 fxe4 54. Rf2+ Ke5 55. Kg3 e3 56. Re2 Ke4 57. h5 gxh5 58. g6 Rd8 59. Kh4 Kf3 60. Rh2 e2 61. Rh3+ Kf4 62. Rh1 Rd1 63. g7 Rxh1# 0-1

[Event "XX Sants Open 2018"]
[Site "Cotxeres de Sants"]
[Date "2018.08.22"]
[Round "6"]
[White "Grasa Solanas, Oscar"]
[Black "Lujan Moreno, Royer Manuel"]
[Result "1/2-1/2"]
[ECO "A30"]
[WhiteElo "1646"]
[BlackElo "1477"]
[Annotator "NA"]
[PlyCount "55"]
[EventDate "2018.08.17"]
[EventType "swiss"]
[EventCountry "ESP"]
[SourceTitle "playchess.com"]
[Source "ChessBase"]
[SourceQuality "1"]
[TimeControl "40/5400+30:1800+30"]

1. c4 c5 2. g3 Nc6 3. Bg2 Nf6 4. Nf3 a6 5. O-O d6 6. Nc3 e5 7. d3 Be7 8. Rb1 Rb8 9. Ne1 Nd4 10. a3 Bd7 11. e3 Ne6 12. b4 b6 13. bxc5 bxc5 14. Bd2 O-O 15. Nd5 Nxd5 16. Bxd5 Nc7 17. Bg2 Qc8 18. Nc2 Ne6 19. Bc3 Bf6 20. Qd2 Ng5 21. e4 Bh3 22. Qe3 Bxg2 23. Kxg2 Qh3+ 24. Kg1 Rxb1 25. Rxb1 Qg4 26. Ne1 Nh3+ 27. Kf1 Ng5 28. Kg1 1/2-1/2

[Event "XX Sants Open 2018"]
[Site "Cotxeres de Sants"]
[Date "2018.08.22"]
[Round "6"]
[White "Torres Janer, Marc"]
[Black "Romero Funieles, Rafael de Jesus"]
[Result "0-1"]
[ECO "A11"]
[WhiteElo "1530"]
[BlackElo "1642"]
[Annotator "NA"]
[PlyCount "80"]
[EventDate "2018.08.17"]
[EventType "swiss"]
[EventCountry "ESP"]
[SourceTitle "playchess.com"]
[Source "ChessBase"]
[SourceQuality "1"]
[TimeControl "40/5400+30:1800+30"]

1. e4 {[%emt 0:00:00]} a6 {[%emt 0:08:53]} 2. Nf3 {[%emt 0:00:11]} e6 {[%emt 0:00:17]} 3. d4 {[%emt 0:01:24]} d6 {[%emt 0:01:26]} 4. Bc4 {[%emt 0:02:09]} Be7 {[%emt 0:00:51]} 5. O-O {[%emt 0:00:25]} h6 {[%emt 0:04:30]} 6. Nc3 {[%emt 0:03:11]} Nf6 {[%emt 0:02:39]} 7. e5 {[%emt 0:03:19]} dxe5 {[%emt 0:01:40]} 8. Nxe5 {[%emt 0:03:59]} c6 {[%emt 0:03:08]} 9. Ne2 {[%emt 0:03:26]} b5 {[%emt 0:01:22]} 10. Bb3 {[%emt 0:01:25]} Bb7 {[%emt 0:00:22]} 11. c3 {[%emt 0:01:25]} Nbd7 {[%emt 0:01:14]} 12. Nxd7 {[%emt 0:04:24]} Qxd7 {[%emt 0:00:31]} 13. Bc2 {[%emt 0:04:39]} Rd8 {[%emt 0:01:13]} 14. Bf4 {[%emt 0:03:10]} Qc8 {[%emt 0:02:47]} 15. Qc1 {[%emt 0:03:51]} c5 {[%emt 0:01:19]} 16. dxc5 {[%emt 0:06:27]} Qxc5 {[%emt 0:00:52]} 17. Qe3 {[%emt 0:05:46]} Qc6 {[%emt 0:01:59]} 18. Qg3 {[%emt 0:07:37]} Nh5 {[%emt 0:05:54]} 19. Qg4 {[%emt 0:04:10]} Nf6 {[%emt 0:08:34]} 20. Qg3 {[%emt 0:04:05]} Qc4 {[%emt 0:02:18]} 21. Nd4 {[%emt 0:09:05]} Nh5 {[%emt 0:03:18]} 22. Qg4 {[%emt 0:06:56]} Rxd4 {[%emt 0:07:59]} 23. cxd4 {[%emt 0:01:54]} Qxc2 {[%emt 0:04:20]} 24. Qxh5 {[%emt 0:01:07]} Qxb2 {[%emt 0:05:10]} 25. Be5 {[%emt 0:03:16]} g6 {[%emt 0:03:51]} 26. Qg4 {[%emt 0:01:53]} O-O {[%emt 0:00:42]} 27. Qg3 {[%emt 0:03:24]} Qe2 {[%emt 0:03:09]} 28. Qe3 {[%emt 0:02:33]} Qg4 {[%emt 0:04:28]} 29. f3 {[%emt 0:00:54]} Qf5 {[%emt 0:02:04]} 30. Qf4 {[%emt 0:03:06]} Qxf4 {[%emt 0:04:10]} 31. Bxf4 {[%emt 0:00:10]} g5 {[%emt 0:00:03]} 32. Be3 {[%emt 0:00:00]} Bb4 {[%emt 0:00:55]} 33. Rfc1 {[%emt 0:00:00]} Bd5 {[%emt 0:00:54]} 34. a3 {[%emt 0:00:56]} Bd6 {[%emt 0:00:36]} 35. Bd2 {[%emt 0:02:22]} Ra8 {[%emt 0:01:05]} 36. Bb4 {[%emt 0:01:49]} Bf4 {[%emt 0:00:16]} 37. Rd1 {[%emt 0:02:33]} Bc4 {[%emt 0:01:49]} 38. Bd2 {[%emt 0:00:29]} Bc7 {[%emt 0:01:16]} 39. Rdc1 {[%emt 0:00:48]} Bb6 {[%emt 0:00:30]} 40. h3 {[%emt 0:00:00]} Bxd4+ {[%emt 0:00:00]} 0-1

[Event "XX Sants Open 2018"]
[Site "Cotxeres de Sants"]
[Date "2018.08.22"]
[Round "6"]
[White "Fontela Hidalgo, Victor"]
[Black "Martinez Torras, Pol"]
[Result "0-1"]
[ECO "B09"]
[WhiteElo "1510"]
[BlackElo "1642"]
[Annotator "NA"]
[PlyCount "73"]
[EventDate "2018.08.17"]
[EventType "swiss"]
[EventCountry "ESP"]
[SourceTitle "playchess.com"]
[Source "ChessBase"]
[SourceQuality "1"]
[TimeControl "40/5400+30:1800+30"]

1. e4 d6 2. d4 Nf6 3. Nc3 g6 4. f4 Bg7 5. Nf3 O-O 6. Bd3 c6 7. a4 Qc7 8. e5 Ne8 9. O-O a6 10. a5 b5 11. axb6 Qxb6 12. Kh1 Bg4 13. Ne2 Nd7 14. c3 Nc7 15. Qc2 c5 16. Be3 Nd5 17. Bg1 Bxf3 18. Rxf3 Rab8 19. dxc5 dxc5 20. b4 Qc7 21. Qd2 cxb4 22. Bxg6 hxg6 23. Qxd5 Rb5 24. Qa2 Ra8 25. e6 b3 26. exf7+ Kxf7 27. Qb1 e6 28. Rg3 Nf8 29. Nd4 Bxd4 30. Bxd4 b2 31. Ra2 Rab8 32. Be5 Qc4 33. Rxa6 R8b7 34. Ra8 Qe4 35. Rd3 Qxd3 36. Ra4 Qe4 37. c4 0-1